[Event "Late-Titled-Tuesday-Blitz-November-28-2023"]
[Site "Chess.com"]
[Date "2023.11.28"]
[Round "10"]
[White "rdarruda"]
[Black "Zavgorodniy_Sergiy"]
[Result "1/2-1/2"]
[WhiteElo "2523"]
[BlackElo "2644"]
[TimeControl "180+1"]
[EndTime "15:50:46 PST"]
[Termination "Game drawn by repetition"]

1. d4 {[%clk 0:02:54.8]} 1... d5 {[%clk 0:02:52.7]} 2. Nf3 {[%clk 0:02:54.5]}
2... Nf6 {[%clk 0:02:51.8]} 3. c4 {[%clk 0:02:54.4]} 3... dxc4 {[%clk
0:02:51.3]} 4. e3 {[%clk 0:02:54.4]} 4... e6 {[%clk 0:02:49.9]} 5. Bxc4 {[%clk
0:02:54.2]} 5... a6 {[%clk 0:02:49.4]} 6. O-O {[%clk 0:02:53.6]} 6... b5 {[%clk
0:02:48.8]} 7. Be2 {[%clk 0:02:53.7]} 7... Bb7 {[%clk 0:02:48.5]} 8. Nc3 {[%clk
0:02:53.8]} 8... Nbd7 {[%clk 0:02:46.8]} 9. b3 {[%clk 0:02:53.8]} 9... c5 {[%clk
0:02:43.6]} 10. Bb2 {[%clk 0:02:52.4]} 10... Rc8 {[%clk 0:02:41.1]} 11. Rc1
{[%clk 0:02:39.4]} 11... Be7 {[%clk 0:02:37.2]} 12. dxc5 {[%clk 0:02:25.1]}
12... Bxc5 {[%clk 0:02:36.3]} 13. Nd4 {[%clk 0:02:23.6]} 13... O-O {[%clk
0:02:33.6]} 14. Bf3 {[%clk 0:02:23.5]} 14... Qb6 {[%clk 0:02:30.5]} 15. Bxb7
{[%clk 0:02:22.1]} 15... Qxb7 {[%clk 0:02:31.4]} 16. Qf3 {[%clk 0:02:21.9]}
16... Qb6 {[%clk 0:02:26]} 17. Rfd1 {[%clk 0:02:20.8]} 17... Rfd8 {[%clk
0:02:23]} 18. h3 {[%clk 0:02:20.1]} 18... Ne5 {[%clk 0:02:20.3]} 19. Qe2 {[%clk
0:02:19.3]} 19... Bxd4 {[%clk 0:02:16.1]} 20. exd4 {[%clk 0:02:15.2]} 20... Ng6
{[%clk 0:02:15.9]} 21. Ne4 {[%clk 0:02:07.8]} 21... Nxe4 {[%clk 0:02:09.1]} 22.
Qxe4 {[%clk 0:02:08.7]} 22... Ne7 {[%clk 0:02:06.8]} 23. Rxc8 {[%clk 0:01:56.4]}
23... Rxc8 {[%clk 0:02:06]} 24. Rc1 {[%clk 0:01:56.9]} 24... Rxc1+ {[%clk
0:02:03.7]} 25. Bxc1 {[%clk 0:01:56.2]} 25... Qc6 {[%clk 0:02:03.3]} 26. Qxc6
{[%clk 0:01:36.6]} 26... Nxc6 {[%clk 0:02:04.2]} 27. Bb2 {[%clk 0:01:36]} 27...
Kf8 {[%clk 0:02:03.3]} 28. Kf1 {[%clk 0:01:32.9]} 28... Nb4 {[%clk 0:02:02.7]}
29. Ba3 {[%clk 0:01:30.7]} 29... a5 {[%clk 0:02:02.9]} 30. Ke2 {[%clk
0:01:24.1]} 30... Ke7 {[%clk 0:01:55.5]} 31. Ke3 {[%clk 0:01:08.5]} 31... Kd6
{[%clk 0:01:50.1]} 32. Bxb4+ {[%clk 0:01:05.1]} 32... axb4 {[%clk 0:01:51]} 33.
Ke4 {[%clk 0:01:00.1]} 33... f5+ {[%clk 0:01:50.5]} 34. Kd3 {[%clk 0:00:59.4]}
34... Kd5 {[%clk 0:01:49.5]} 35. f4 {[%clk 0:00:56.8]} 35... g6 {[%clk 0:01:38]}
36. h4 {[%clk 0:00:54.5]} 36... h6 {[%clk 0:01:34.5]} 37. Ke3 {[%clk 0:00:54]}
37... Kd6 {[%clk 0:01:34]} 38. Kd3 {[%clk 0:00:53.5]} 38... Ke7 {[%clk
0:01:32.2]} 39. g3 {[%clk 0:00:50.6]} 39... Kf6 {[%clk 0:01:26]} 40. Ke3 {[%clk
0:00:50.6]} 40... g5 {[%clk 0:01:23.1]} 41. h5 {[%clk 0:00:50.1]} 41... g4
{[%clk 0:01:16.7]} 42. Kd3 {[%clk 0:00:49.8]} 42... Ke7 {[%clk 0:01:16.7]} 43.
Ke3 {[%clk 0:00:50.1]} 43... Kd6 {[%clk 0:01:16.9]} 44. Kd3 {[%clk 0:00:50.4]}
44... Kd5 {[%clk 0:01:17.2]} 45. Ke3 {[%clk 0:00:50.6]} 45... Kd6 {[%clk
0:01:17.4]} 46. Kd3 {[%clk 0:00:50.8]} 46... Kc6 {[%clk 0:01:17.8]} 47. Ke3
{[%clk 0:00:51]} 47... Kd5 {[%clk 0:01:17.1]} 48. Kd3 {[%clk 0:00:51.6]} 48...
Kd6 {[%clk 0:01:17.6]} 49. Ke3 {[%clk 0:00:52.2]} 49... Kd7 {[%clk 0:01:17.3]}
50. Kd3 {[%clk 0:00:52.7]} 50... Kc7 {[%clk 0:01:17.3]} 51. Ke3 {[%clk
0:00:53.2]} 51... Kc6 {[%clk 0:01:14.7]} 52. Kd3 {[%clk 0:00:54.1]} 52... Kd7
{[%clk 0:01:14]} 53. Ke3 {[%clk 0:00:54.4]} 53... Ke7 {[%clk 0:01:14.3]} 54. Kd3
{[%clk 0:00:55]} 54... Kd6 {[%clk 0:01:14.3]} 55. Ke3 {[%clk 0:00:55.5]} 55...
Kd5 {[%clk 0:01:14.5]} 56. Kd3 {[%clk 0:00:55.8]} 56... Kc6 {[%clk 0:01:14.6]}
57. Ke3 {[%clk 0:00:56.1]} 57... Kd6 {[%clk 0:01:11.6]} 1/2-1/2

[Event "Late-Titled-Tuesday-Blitz-November-28-2023"]
[Site "Chess.com"]
[Date "2023.11.28"]
[Round "10"]
[White "jefferyx"]
[Black "GHANDEEVAM2003"]
[Result "1-0"]
[WhiteElo "3006"]
[BlackElo "3111"]
[TimeControl "180+1"]
[EndTime "15:50:58 PST"]
[Termination "jefferyx won by resignation"]

1. d4 {[%clk 0:03:00.9]} 1... g6 {[%clk 0:02:59.7]} 2. e4 {[%clk 0:02:59.7]}
2... Bg7 {[%clk 0:02:59.9]} 3. Nf3 {[%clk 0:03:00]} 3... d6 {[%clk 0:02:59.3]}
4. Be3 {[%clk 0:03:00.5]} 4... a6 {[%clk 0:02:56.1]} 5. c4 {[%clk 0:02:57.9]}
5... Nd7 {[%clk 0:02:54.5]} 6. Nc3 {[%clk 0:02:57.5]} 6... e5 {[%clk 0:02:54.5]}
7. Be2 {[%clk 0:02:53.4]} 7... Ngf6 {[%clk 0:02:54.3]} 8. Qd2 {[%clk 0:02:47]}
8... O-O {[%clk 0:02:53.8]} 9. Bh6 {[%clk 0:02:46.1]} 9... Re8 {[%clk
0:02:52.3]} 10. Bxg7 {[%clk 0:02:46]} 10... Kxg7 {[%clk 0:02:53.2]} 11. d5
{[%clk 0:02:46]} 11... Nc5 {[%clk 0:02:52.1]} 12. Qe3 {[%clk 0:02:32.2]} 12...
a5 {[%clk 0:02:51.5]} 13. Nd2 {[%clk 0:02:30.5]} 13... Bg4 {[%clk 0:02:46.2]}
14. f3 {[%clk 0:02:28.4]} 14... Bd7 {[%clk 0:02:46.3]} 15. g4 {[%clk 0:02:28.3]}
15... h5 {[%clk 0:02:43.6]} 16. h3 {[%clk 0:02:28.2]} 16... c6 {[%clk
0:02:41.8]} 17. O-O-O {[%clk 0:02:26]} 17... cxd5 {[%clk 0:02:36.2]} 18. exd5
{[%clk 0:02:21.1]} 18... Rh8 {[%clk 0:02:09]} 19. g5 {[%clk 0:02:18.3]} 19...
Nh7 {[%clk 0:02:08.7]} 20. h4 {[%clk 0:02:17.6]} 20... Bf5 {[%clk 0:02:00.9]}
21. Nf1 {[%clk 0:02:08.1]} 21... Qb6 {[%clk 0:01:56.9]} 22. Qd2 {[%clk
0:02:04.4]} 22... Rhe8 {[%clk 0:01:43.4]} 23. Ng3 {[%clk 0:02:03.9]} 23... Nf8
{[%clk 0:01:40.9]} 24. Nxf5+ {[%clk 0:01:58.5]} 24... gxf5 {[%clk 0:01:41.8]}
25. f4 {[%clk 0:01:51.2]} 25... e4 {[%clk 0:01:36.2]} 26. Qd4+ {[%clk 0:01:47]}
26... Kg8 {[%clk 0:01:31]} 27. Bxh5 {[%clk 0:01:46.6]} 27... Rac8 {[%clk
0:01:30.4]} 28. Kb1 {[%clk 0:01:42.4]} 28... Ncd7 {[%clk 0:01:25.4]} 29. Nb5
{[%clk 0:01:36.8]} 29... Rc5 {[%clk 0:01:20.4]} 30. Rhg1 {[%clk 0:01:29.8]}
30... Re7 {[%clk 0:01:11.8]} 31. g6 {[%clk 0:01:27.4]} 31... f6 {[%clk
0:01:11.9]} 32. g7 {[%clk 0:01:23.4]} 32... Rxg7 {[%clk 0:01:11.1]} 33. Rxg7+
{[%clk 0:01:22.2]} 33... Kxg7 {[%clk 0:01:12]} 34. Rg1+ {[%clk 0:01:12]} 34...
Kh8 {[%clk 0:01:04.1]} 35. Qd1 {[%clk 0:01:08.2]} 35... Nh7 {[%clk 0:00:40.4]}
36. Bf7 {[%clk 0:01:07.2]} 36... Rc8 {[%clk 0:00:40.8]} 37. Be6 {[%clk
0:00:59.2]} 37... Rd8 {[%clk 0:00:37.4]} 38. Bxf5 {[%clk 0:00:59.3]} 38... e3
{[%clk 0:00:32.7]} 39. Qh5 {[%clk 0:00:59]} 39... Nf8 {[%clk 0:00:32.9]} 40. Qf7
{[%clk 0:00:58.9]} 1-0

[Event "Late-Titled-Tuesday-Blitz-November-28-2023"]
[Site "Chess.com"]
[Date "2023.11.28"]
[Round "10"]
[White "Sic_Transit_GM"]
[Black "zajka-molotok"]
[Result "1-0"]
[WhiteElo "2724"]
[BlackElo "2545"]
[TimeControl "180+1"]
[EndTime "15:50:58 PST"]
[Termination "Sic_Transit_GM won by resignation"]

1. g3 {[%clk 0:03:00.9]} 1... d5 {[%clk 0:02:59]} 2. Bg2 {[%clk 0:03:01.1]} 2...
e5 {[%clk 0:02:58.7]} 3. Nf3 {[%clk 0:03:00.7]} 3... e4 {[%clk 0:02:57.4]} 4.
Nd4 {[%clk 0:03:00.9]} 4... c5 {[%clk 0:02:55.6]} 5. Nb3 {[%clk 0:03:01]} 5...
f5 {[%clk 0:02:51.4]} 6. d3 {[%clk 0:03:00.8]} 6... Nf6 {[%clk 0:02:46.7]} 7.
Bg5 {[%clk 0:02:59.1]} 7... Be6 {[%clk 0:02:31.5]} 8. dxe4 {[%clk 0:02:56.3]}
8... dxe4 {[%clk 0:02:21.4]} 9. Qxd8+ {[%clk 0:02:57.2]} 9... Kxd8 {[%clk
0:02:21.7]} 10. Nc3 {[%clk 0:02:55.8]} 10... Nd7 {[%clk 0:02:17.5]} 11. O-O-O
{[%clk 0:02:55.2]} 11... Be7 {[%clk 0:02:12.6]} 12. f3 {[%clk 0:02:53.8]} 12...
exf3 {[%clk 0:02:02.2]} 13. exf3 {[%clk 0:02:54.7]} 13... Bxb3 {[%clk
0:01:46.2]} 14. axb3 {[%clk 0:02:53.8]} 14... Kc8 {[%clk 0:01:36.7]} 15. Rhe1
{[%clk 0:02:52.7]} 15... Re8 {[%clk 0:01:29.2]} 16. Bh3 {[%clk 0:02:46.3]} 16...
g6 {[%clk 0:01:23]} 17. Nb5 {[%clk 0:02:46.2]} 17... a6 {[%clk 0:01:17.7]} 18.
Nc3 {[%clk 0:02:30.4]} 18... Kc7 {[%clk 0:01:11.4]} 19. g4 {[%clk 0:02:27.2]}
19... fxg4 {[%clk 0:01:08.7]} 20. fxg4 {[%clk 0:02:27.3]} 20... Rad8 {[%clk
0:01:02.9]} 21. Bf4+ {[%clk 0:02:21.5]} 21... Kb6 {[%clk 0:00:54.2]} 22. g5
{[%clk 0:02:18.1]} 22... Nh5 {[%clk 0:00:50.6]} 23. Nd5+ {[%clk 0:02:12.2]}
23... Ka7 {[%clk 0:00:44.9]} 24. Rxe7 {[%clk 0:02:04.3]} 24... Rxe7 {[%clk
0:00:38.9]} 25. Nxe7 {[%clk 0:02:05.2]} 25... Nxf4 {[%clk 0:00:39.1]} 26. Bxd7
{[%clk 0:02:03.3]} 26... Ne2+ {[%clk 0:00:34.6]} 27. Kb1 {[%clk 0:01:59.8]}
27... Kb8 {[%clk 0:00:28.1]} 28. c4 {[%clk 0:01:52.4]} 28... Kc7 {[%clk
0:00:20.6]} 29. Nd5+ {[%clk 0:01:52.4]} 29... Kxd7 {[%clk 0:00:20.8]} 30. Nf6+
{[%clk 0:01:39.1]} 30... Kc8 {[%clk 0:00:19.4]} 31. Rxd8+ {[%clk 0:01:38.2]}
31... Kxd8 {[%clk 0:00:20]} 32. Nxh7 {[%clk 0:01:39.1]} 32... Ke7 {[%clk
0:00:19.7]} 33. Kc2 {[%clk 0:01:35.9]} 33... Ke6 {[%clk 0:00:18.3]} 34. Kd3
{[%clk 0:01:33.9]} 34... Nd4 {[%clk 0:00:15.8]} 35. b4 {[%clk 0:01:33.9]} 35...
b6 {[%clk 0:00:15.7]} 36. bxc5 {[%clk 0:01:33.2]} 36... bxc5 {[%clk 0:00:15.8]}
37. b4 {[%clk 0:01:33.6]} 37... Nb3 {[%clk 0:00:14.6]} 38. b5 {[%clk 0:01:32.5]}
38... axb5 {[%clk 0:00:13.5]} 39. cxb5 {[%clk 0:01:33.4]} 39... Na5 {[%clk
0:00:13.1]} 40. h4 {[%clk 0:01:32.2]} 40... Kd5 {[%clk 0:00:06.3]} 41. Nf8
{[%clk 0:01:31.1]} 41... c4+ {[%clk 0:00:05.6]} 42. Kc3 {[%clk 0:01:31.4]} 42...
Kc5 {[%clk 0:00:05.1]} 43. Nxg6 {[%clk 0:01:30.6]} 43... Kxb5 {[%clk 0:00:04.4]}
44. Ne5 {[%clk 0:01:30.8]} 44... Kc5 {[%clk 0:00:03.4]} 45. g6 {[%clk
0:01:30.9]} 45... Nb7 {[%clk 0:00:03.8]} 46. g7 {[%clk 0:01:30.4]} 46... Nd6
{[%clk 0:00:04.7]} 47. g8=Q {[%clk 0:01:28.8]} 1-0

[Event "Late-Titled-Tuesday-Blitz-November-28-2023"]
[Site "Chess.com"]
[Date "2023.11.28"]
[Round "10"]
[White "kai_nov"]
[Black "temiksmozg"]
[Result "0-1"]
[WhiteElo "2308"]
[BlackElo "2602"]
[TimeControl "180+1"]
[EndTime "15:51:09 PST"]
[Termination "temiksmozg won on time"]

1. d4 {[%clk 0:02:57.1]} 1... Nf6 {[%clk 0:02:59.2]} 2. c4 {[%clk 0:02:56.8]}
2... e6 {[%clk 0:02:59.2]} 3. Nc3 {[%clk 0:02:56.5]} 3... d5 {[%clk 0:02:59]} 4.
cxd5 {[%clk 0:02:55.6]} 4... exd5 {[%clk 0:02:59.9]} 5. Bg5 {[%clk 0:02:55.6]}
5... c6 {[%clk 0:03:00.5]} 6. e3 {[%clk 0:02:55.9]} 6... Be7 {[%clk 0:02:59.7]}
7. Bd3 {[%clk 0:02:55.1]} 7... h6 {[%clk 0:02:59.3]} 8. Bf4 {[%clk 0:02:54.7]}
8... O-O {[%clk 0:02:57.7]} 9. Nf3 {[%clk 0:02:53.2]} 9... Bd6 {[%clk
0:02:48.7]} 10. Ne5 {[%clk 0:02:40.4]} 10... Qe7 {[%clk 0:02:48.1]} 11. O-O
{[%clk 0:02:33.4]} 11... Nbd7 {[%clk 0:02:43.6]} 12. Nxd7 {[%clk 0:02:32.6]}
12... Bxd7 {[%clk 0:02:43.2]} 13. Bxd6 {[%clk 0:02:32.3]} 13... Qxd6 {[%clk
0:02:42.6]} 14. h3 {[%clk 0:02:30.1]} 14... Rfe8 {[%clk 0:02:39.2]} 15. Rb1
{[%clk 0:02:27.7]} 15... a5 {[%clk 0:02:39.1]} 16. a3 {[%clk 0:02:26.8]} 16...
Re7 {[%clk 0:02:29.6]} 17. b4 {[%clk 0:02:20.5]} 17... axb4 {[%clk 0:02:27.1]}
18. axb4 {[%clk 0:02:21.4]} 18... b5 {[%clk 0:02:27.6]} 19. Qb3 {[%clk
0:02:07.5]} 19... Be6 {[%clk 0:02:24.7]} 20. Ra1 {[%clk 0:02:05.1]} 20... Rea7
{[%clk 0:02:24.5]} 21. Rxa7 {[%clk 0:01:56]} 21... Rxa7 {[%clk 0:02:25.4]} 22.
Qb2 {[%clk 0:01:33.5]} 22... g5 {[%clk 0:02:03.2]} 23. f4 {[%clk 0:01:27.4]}
23... g4 {[%clk 0:01:58.1]} 24. f5 {[%clk 0:01:13.4]} 24... Bd7 {[%clk
0:01:57.7]} 25. Rf4 {[%clk 0:00:50.8]} 25... gxh3 {[%clk 0:01:42.6]} 26. g4
{[%clk 0:00:41.2]} 26... Qe7 {[%clk 0:01:26.3]} 27. e4 {[%clk 0:00:28.5]} 27...
dxe4 {[%clk 0:01:24.5]} 28. Nxe4 {[%clk 0:00:20.8]} 28... Nd5 {[%clk 0:01:24.3]}
29. f6 {[%clk 0:00:10.3]} 29... Qxb4 {[%clk 0:01:20.5]} 30. Qf2 {[%clk
0:00:07.2]} 30... Nxf4 {[%clk 0:01:01.4]} 31. Qxf4 {[%clk 0:00:06.9]} 31...
Qxd4+ {[%clk 0:01:01.9]} 32. Kh1 {[%clk 0:00:03.8]} 32... Qxd3 {[%clk
0:00:50.7]} 0-1

[Event "Late-Titled-Tuesday-Blitz-November-28-2023"]
[Site "Chess.com"]
[Date "2023.11.28"]
[Round "10"]
[White "Nf3c5"]
[Black "ChessSwole"]
[Result "0-1"]
[WhiteElo "2519"]
[BlackElo "2702"]
[TimeControl "180+1"]
[EndTime "15:51:21 PST"]
[Termination "ChessSwole won on time"]

1. Nf3 {[%clk 0:03:00.9]} 1... d5 {[%clk 0:02:58.7]} 2. d4 {[%clk 0:02:58.7]}
2... Nf6 {[%clk 0:02:58.5]} 3. e3 {[%clk 0:02:56.3]} 3... Bf5 {[%clk 0:02:57.6]}
4. c4 {[%clk 0:02:54.4]} 4... e6 {[%clk 0:02:57.8]} 5. Nc3 {[%clk 0:02:54.4]}
5... c6 {[%clk 0:02:55.1]} 6. Nh4 {[%clk 0:02:53.9]} 6... Be4 {[%clk 0:02:54.1]}
7. f3 {[%clk 0:02:53.1]} 7... Bg6 {[%clk 0:02:53.7]} 8. Qb3 {[%clk 0:02:48]}
8... Qc7 {[%clk 0:02:53.4]} 9. Bd2 {[%clk 0:02:43.9]} 9... Be7 {[%clk
0:02:47.5]} 10. Rc1 {[%clk 0:02:33.7]} 10... Nbd7 {[%clk 0:02:17.5]} 11. cxd5
{[%clk 0:02:06.8]} 11... exd5 {[%clk 0:02:18.4]} 12. Nxg6 {[%clk 0:02:06.9]}
12... hxg6 {[%clk 0:02:17.7]} 13. g3 {[%clk 0:01:31.9]} 13... Bd6 {[%clk
0:02:05.3]} 14. Bg2 {[%clk 0:01:03.7]} 14... Rxh2 {[%clk 0:01:52.9]} 15. Rxh2
{[%clk 0:00:55.7]} 15... Bxg3+ {[%clk 0:01:53.2]} 16. Ke2 {[%clk 0:00:55.5]}
16... Bxh2 {[%clk 0:01:54.1]} 17. f4 {[%clk 0:00:55.4]} 17... Bg3 {[%clk
0:01:09.2]} 18. Nxd5 {[%clk 0:00:39.4]} 18... Nxd5 {[%clk 0:01:09.1]} 19. Qxd5
{[%clk 0:00:39.6]} 19... Bh4 {[%clk 0:00:54.6]} 20. Qe4+ {[%clk 0:00:32.1]}
20... Be7 {[%clk 0:00:51.5]} 21. d5 {[%clk 0:00:31.8]} 21... Nf6 {[%clk
0:00:50.7]} 22. Qd3 {[%clk 0:00:31.8]} 22... Rd8 {[%clk 0:00:48.6]} 23. e4
{[%clk 0:00:31.4]} 23... Qb6 {[%clk 0:00:43.3]} 24. Bc3 {[%clk 0:00:17.2]} 24...
cxd5 {[%clk 0:00:42.3]} 25. e5 {[%clk 0:00:17.7]} 25... Ng4 {[%clk 0:00:40.3]}
26. Qf3 {[%clk 0:00:16]} 26... Nh6 {[%clk 0:00:37.7]} 27. Bh3 {[%clk 0:00:15.2]}
27... d4 {[%clk 0:00:37.1]} 28. Bd2 {[%clk 0:00:15.3]} 28... d3+ {[%clk
0:00:35.5]} 29. Kd1 {[%clk 0:00:14]} 29... Qg1+ {[%clk 0:00:33.8]} 30. Be1
{[%clk 0:00:14.4]} 30... d2 {[%clk 0:00:32.1]} 0-1

[Event "Late-Titled-Tuesday-Blitz-November-28-2023"]
[Site "Chess.com"]
[Date "2023.11.28"]
[Round "10"]
[White "Goryachkina"]
[Black "elchacal664"]
[Result "1-0"]
[WhiteElo "2657"]
[BlackElo "2384"]
[TimeControl "180+1"]
[EndTime "15:51:24 PST"]
[Termination "Goryachkina won on time"]

1. e4 {[%clk 0:03:00.2]} 1... c5 {[%clk 0:02:56.6]} 2. Nf3 {[%clk 0:03:00]} 2...
d6 {[%clk 0:02:53.6]} 3. d4 {[%clk 0:02:58.8]} 3... cxd4 {[%clk 0:02:54.5]} 4.
Nxd4 {[%clk 0:02:59.1]} 4... Nf6 {[%clk 0:02:55.1]} 5. Nc3 {[%clk 0:02:59.1]}
5... g6 {[%clk 0:02:53.4]} 6. Be2 {[%clk 0:02:57.3]} 6... a6 {[%clk 0:02:53.2]}
7. a4 {[%clk 0:02:53.4]} 7... Bg7 {[%clk 0:02:53.4]} 8. O-O {[%clk 0:02:53.7]}
8... O-O {[%clk 0:02:53.9]} 9. Be3 {[%clk 0:02:53.4]} 9... Bd7 {[%clk
0:02:53.4]} 10. a5 {[%clk 0:02:49]} 10... Nc6 {[%clk 0:02:51.9]} 11. Nb3 {[%clk
0:02:48.2]} 11... Rc8 {[%clk 0:02:47.1]} 12. f3 {[%clk 0:02:46.6]} 12... Ne5
{[%clk 0:02:45.9]} 13. Kh1 {[%clk 0:02:29.7]} 13... Nc4 {[%clk 0:02:44.2]} 14.
Bxc4 {[%clk 0:02:29]} 14... Rxc4 {[%clk 0:02:45.1]} 15. Qd3 {[%clk 0:02:28]}
15... Rc8 {[%clk 0:02:37]} 16. Bb6 {[%clk 0:02:24.9]} 16... Qe8 {[%clk
0:02:35.7]} 17. Rad1 {[%clk 0:02:22.8]} 17... Be6 {[%clk 0:02:34.8]} 18. Rfe1
{[%clk 0:02:11.4]} 18... Nd7 {[%clk 0:02:26.2]} 19. Bd4 {[%clk 0:02:11.1]} 19...
Ne5 {[%clk 0:02:24.8]} 20. Qe2 {[%clk 0:02:09.9]} 20... Nc4 {[%clk 0:02:06.9]}
21. Bxg7 {[%clk 0:02:08.1]} 21... Kxg7 {[%clk 0:02:07.5]} 22. Rb1 {[%clk
0:01:40.3]} 22... Nxb2 {[%clk 0:02:02.1]} 23. Nd5 {[%clk 0:01:29.5]} 23... Nc4
{[%clk 0:01:59.2]} 24. Nd4 {[%clk 0:01:27.8]} 24... Bxd5 {[%clk 0:01:53]} 25.
exd5 {[%clk 0:01:28]} 25... Rc7 {[%clk 0:01:50.8]} 26. f4 {[%clk 0:01:11.1]}
26... Nxa5 {[%clk 0:01:37.1]} 27. f5 {[%clk 0:01:10.7]} 27... Nc4 {[%clk
0:01:36.7]} 28. Rb3 {[%clk 0:01:10.1]} 28... Ne5 {[%clk 0:01:34.7]} 29. Rh3
{[%clk 0:01:09.2]} 29... Qa4 {[%clk 0:00:48.3]} 30. Qd2 {[%clk 0:01:06.5]} 30...
Rh8 {[%clk 0:00:35.1]} 31. Qh6+ {[%clk 0:00:53.6]} 31... Kg8 {[%clk 0:00:34.5]}
32. fxg6 {[%clk 0:00:52]} 32... Nxg6 {[%clk 0:00:13.6]} 33. Nf5 {[%clk 0:00:48]}
1-0

[Event "Late-Titled-Tuesday-Blitz-November-28-2023"]
[Site "Chess.com"]
[Date "2023.11.28"]
[Round "10"]
[White "JSPrepz"]
[Black "BogdanDeac"]
[Result "0-1"]
[WhiteElo "2887"]
[BlackElo "3005"]
[TimeControl "180+1"]
[EndTime "15:51:27 PST"]
[Termination "BogdanDeac won by resignation"]

1. e4 {[%clk 0:03:00.9]} 1... e5 {[%clk 0:03:00.3]} 2. Nf3 {[%clk 0:03:01.2]}
2... Nf6 {[%clk 0:03:00.2]} 3. Nc3 {[%clk 0:03:00.6]} 3... Nc6 {[%clk
0:03:00.2]} 4. a3 {[%clk 0:03:00.9]} 4... g6 {[%clk 0:02:56.2]} 5. Nxe5 {[%clk
0:03:00.8]} 5... Nxe5 {[%clk 0:02:55.7]} 6. d4 {[%clk 0:03:01.5]} 6... Nc6
{[%clk 0:02:53.7]} 7. d5 {[%clk 0:03:02.1]} 7... Bg7 {[%clk 0:02:53.6]} 8. dxc6
{[%clk 0:03:02.6]} 8... bxc6 {[%clk 0:02:54.5]} 9. Bd3 {[%clk 0:03:03.2]} 9...
O-O {[%clk 0:02:53.8]} 10. O-O {[%clk 0:03:03.8]} 10... Re8 {[%clk 0:02:52.5]}
11. Re1 {[%clk 0:03:02]} 11... d6 {[%clk 0:02:52.8]} 12. Bg5 {[%clk 0:03:01.7]}
12... h6 {[%clk 0:02:51.2]} 13. Bh4 {[%clk 0:03:01.6]} 13... Rb8 {[%clk
0:02:49]} 14. Rb1 {[%clk 0:02:59.8]} 14... g5 {[%clk 0:02:48.8]} 15. Bg3 {[%clk
0:02:59.9]} 15... Ng4 {[%clk 0:02:49.4]} 16. Qd2 {[%clk 0:02:56.3]} 16... h5
{[%clk 0:02:31.8]} 17. h3 {[%clk 0:01:52.1]} 17... h4 {[%clk 0:02:25.9]} 18. Be2
{[%clk 0:01:51.2]} 18... hxg3 {[%clk 0:02:18.4]} 19. Bxg4 {[%clk 0:01:51.4]}
19... Bxg4 {[%clk 0:02:17.8]} 20. hxg4 {[%clk 0:01:51.2]} 20... Qf6 {[%clk
0:01:40.5]} 21. fxg3 {[%clk 0:01:35.7]} 21... Rxb2 {[%clk 0:01:37.7]} 22. e5
{[%clk 0:01:26.1]} 22... Rxb1 {[%clk 0:01:37.1]} 23. Nxb1 {[%clk 0:00:47.4]}
23... Rxe5 {[%clk 0:01:36.1]} 24. Rf1 {[%clk 0:00:45.5]} 24... Qe6 {[%clk
0:01:30.1]} 25. Nc3 {[%clk 0:00:45.9]} 25... Qxg4 {[%clk 0:01:24.7]} 26. Qd3
{[%clk 0:00:41.6]} 26... Re3 {[%clk 0:01:16.5]} 27. Qxe3 {[%clk 0:00:37]} 27...
Bd4 {[%clk 0:01:16.6]} 28. Nd1 {[%clk 0:00:37.9]} 28... Bxe3+ {[%clk 0:01:03.4]}
29. Nxe3 {[%clk 0:00:38.8]} 29... Qxg3 {[%clk 0:01:03.8]} 30. Nf5 {[%clk
0:00:39.5]} 30... Qxa3 {[%clk 0:01:03.6]} 31. Ne7+ {[%clk 0:00:40.1]} 31... Kf8
{[%clk 0:00:57.2]} 32. Nf5 {[%clk 0:00:40.6]} 32... Qc5+ {[%clk 0:00:55.3]} 33.
Kh2 {[%clk 0:00:41]} 33... Qxc2 {[%clk 0:00:51.2]} 34. Kg3 {[%clk 0:00:41.4]}
34... Qe4 {[%clk 0:00:50.9]} 35. Kh3 {[%clk 0:00:39.8]} 35... a5 {[%clk
0:00:36.6]} 36. g4 {[%clk 0:00:39.4]} 36... a4 {[%clk 0:00:33.7]} 37. Kg3 {[%clk
0:00:39.9]} 37... a3 {[%clk 0:00:25.4]} 38. Rf2 {[%clk 0:00:40.5]} 38... c5
{[%clk 0:00:18.3]} 39. Rd2 {[%clk 0:00:29.3]} 39... Qf4+ {[%clk 0:00:18.1]} 0-1